[Event "26th OIBM 2023"]
[Site "Gmund am Tegernsee"]
[Date "2023.11.03"]
[Round "7.1"]
[White "Vogel, Roven"]
[Black "Gopal G.N."]
[Result "1/2-1/2"]
[ECO "D12"]
[WhiteElo "2471"]
[BlackElo "2573"]
[Annotator "TA"]
[PlyCount "162"]
[EventDate "2023.10.04"]
[EventType "swiss"]
[EventCountry "GER"]
[SourceTitle "playchess.com"]
[Source "ChessBase"]
[SourceQuality "1"]
[TimeControl "40/5400+30:1800+30"]

{[%evp 13,161,5,5,7,0,6,6,0,0,0,0,0,0,0,0,0,0,0,0,0,0,0,14,8,7,10,10,6,10,5,16,8,20,20,18,15,13,15,13,0,18,13,20,0,34,22,24,25,121,117,113,120,117,127,123,123,118,123,124,123,123,123,105,12,12,0,0,0,13,2,2,2,2,2,2,0,62,62,62,55,55,62,62,62,62,62,62,62,62,62,62,62,62,133,62,62,62,0,0,0,0,0,0,0,0,0,0,0,0,0,0,0,0,0,0,0,46,40,69,69,72,69,69,0,0,0,0,0,0,0,0,0,0,0,0,0,0,0,0,0,0,0,0,0,0,0,0,0,0,0]} 1. Nf3 {[%emt 0:00:04]} d5 {[%emt 0:00:03]} 2. e3 {[%emt 0:02:13]} Nf6 {[%emt 0:00:15]} 3. c4 {[%emt 0:00:07]} c6 {[%emt 0:00:14]} 4. d4 {[%emt 0:01:01]} Bf5 {[%emt 0:00:35]} 5. Nc3 {[%emt 0:00:22]} e6 {[%emt 0:00:07]} 6. Be2 {[%emt 0:01:00]} h6 {[%emt 0:14:24]} 7. O-O {[%emt 0:00:17] 7.Bd3 is the modern continuation.} Nbd7 {[%emt 0:00:05]} 8. Bd3 {[%emt 0:00:37] D12: Slav Defence: 3 Nf3 Nf6 4 e3 Bf5.} Bxd3 {[%emt 0:03:31]} 9. Qxd3 {[%emt 0:00:06]} Bb4 {[%emt 0:06:25][%cal Bf8b4,Bb4a5,Ba5c7][%mdl 32]} 10. Bd2 {[%emt 0:01:13][%cal Oc3d5]} Ba5 {[%emt 0:08:30]} 11. b4 {[%emt 0:03:55]} Bc7 {[%emt 0:00:07]} 12. b5 {[%emt 0:08:47] [#]} O-O $146 {[%emt 0:03:29]} ({Predecessor:} 12... Nb6 13. bxc6 dxc4 14. Qc2 bxc6 15. Na4 O-O 16. Rac1 Qd5 17. Bb4 Rfb8 18. Nb2 a5 {0-1 Deac,B (2700)-Firouzja,A (2785) Bucharest Superbet Classic 3rd 2023 (4)}) 13. bxc6 {[%emt 0:10:15]} bxc6 {[%emt 0:00:04]} 14. cxd5 {[%emt 0:00:55]} cxd5 {[%emt 0:01:59]} 15. Nb5 {[%emt 0:00:10]} Ba5 {[%emt 0:02:44]} 16. Qa3 {[%emt 0:02:43]} Bxd2 {[%emt 0:00:55]} 17. Nxd2 {[%emt 0:00:02]} a6 {[%emt 0:04:04]} 18. Nc3 {[%emt 0:02:01][%cal Bb5c3,Bc3a4,Ba4c5][%mdl 32]} Qb6 {[%emt 0:06:44]} 19. Rab1 {[%emt 0:02:55]} Qa7 {[%emt 0:01:01]} 20. Na4 {[%emt 0:06:55]} Rfc8 {[%emt 0:04:41]} 21. Rfc1 {[%emt 0:02:16]} Rc7 {[%emt 0:02:30]} 22. Nb3 {[%emt 0:08:06]} Rac8 {[%emt 0:04:54]} 23. Rxc7 {[%emt 0:01:11]} Rxc7 {[%emt 0:00:56]} 24. Nbc5 {[%emt 0:01:38]} Nxc5 {[%emt 0:00:58]} 25. Nxc5 {[%emt 0:03:25]} Nd7 {[%emt 0:01:07]} 26. Nd3 {[%emt 0:04:41]} (26. Nxa6 $2 {perishes.} Rc6 27. Qe7 Rxa6 $19) 26... Qa8 {[%emt 0:07:15]} 27. h3 {[%emt 0:03:16]} Qc8 {[%emt 0:02:30]} 28. Rb3 {[%emt 0:10:33]} Kh7 {[%emt 0:07:26]} 29. Qd6 {[%emt 0:02:22]} Rc2 {[%emt 0:05:57]} 30. Qf4 {[%emt 0:00:09]} Nf6 {[%emt 0:01:39]} (30... Rc7 $11) 31. Nc5 $1 $16 {[%emt 0:01:04]} Nd7 {[%emt 0:07:06] Prevents Rb8} 32. Qxf7 {[%emt 0:02:14]} Nxc5 {[%emt 0:00:00]} 33. dxc5 {[%emt 0:00:11]} Rxc5 {[%emt 0:00:15][%mdl 4096] Endgame KQR-KQR} 34. Rb7 {[%emt 0:01:29][%csl Gb7][%cal Rf7g7]} Qg8 {[%emt 0:00:01]} 35. Qe7 {[%emt 0:05:13] White has more active pieces.} Rc1+ {[%emt 0:02:57]} 36. Kh2 {[%emt 0:00:02]} Rc2 {[%emt 0:00:10] [#]} 37. f4 {[%emt 0:00:06]} Rxa2 {[%emt 0:02:10] [#]} 38. Rd7 {[%emt 0:05:52]} (38. Qd7 $1 $16 Re2 39. Qc7) 38... Rb2 $1 $11 {[%emt 0:00:11]} 39. Rd6 {[%emt 0:00:34][%mdl 1024] White has compensation.} Qc8 {[%emt 0:01:16]} 40. Rd7 {[%emt 0:02:51][%csl Gd7][%cal Re7g7]} Qg8 {[%emt 0:00:22]} 41. Rd8 {[%emt 0:16:46]} Rb7 $1 {[%emt 0:00:45][%mdl 64] Deflection} 42. Qd6 $36 {[%emt 0:00:12][%mdl 2048] White has good play.} Qf7 {[%emt 0:00:41]} 43. Qxa6 {[%emt 0:00:27]} Rd7 {[%emt 0:08:47]} 44. Rc8 {[%emt 0:02:15]} d4 {[%emt 0:12:30]} (44... Qf5 $11) 45. Qa8 $1 $14 {[%emt 0:03:25]} g6 {[%emt 0:00:24]} 46. Rf8 {[%emt 0:01:46]} (46. Rh8+ {keeps more tension.} Kg7 47. Qb8 Rd5 48. exd4 Rb5 49. Rg8+) 46... Qg7 {[%emt 0:00:43]} 47. exd4 $1 {[%emt 0:00:07]} Qxd4 {[%emt 0:03:58]} 48. Qe8 {[%emt 0:00:41] Inhibits Re7.} Qg7 {[%emt 0:01:07] [#]} 49. Rh8+ $1 {[%emt 0:01:38][%mdl 64] Deflection} Qxh8 {[%emt 0:00:02]} 50. Qxd7+ {[%emt 0:00:06] KQ-KQ} Qg7 {[%emt 0:00:07]} 51. Qxe6 {[%emt 0:00:03]} Qc7 {[%emt 0:03:33]} 52. Kg3 {[%emt 0:00:51]} Qc2 {[%emt 0:00:37]} 53. Qf7+ {[%emt 0:01:03]} Kh8 {[%emt 0:00:06]} 54. Qd5 {[%emt 0:00:17]} Kg7 {[%emt 0:02:44]} 55. Kh4 {[%emt 0:03:55]} ({White should play} 55. Kf3 $14) 55... Qf2+ $1 $11 {[%emt 0:00:06]} 56. g3 {[%emt 0:00:17]} Qc2 {[%emt 0:00:15]} 57. Qd4+ {[%emt 0:00:22]} Kg8 {[%emt 0:00:31]} 58. Qe5 {[%emt 0:00:57]} Qd3 {[%emt 0:00:30]} 59. Qe6+ {[%emt 0:04:49]} Kg7 {[%emt 0:00:10] ( -> ...Qd8+)} 60. Qe7+ {[%emt 0:00:04]} Kg8 {[%emt 0:00:04]} 61. Qf6 {[%emt 0:00:57]} Qc2 {[%emt 0:01:18]} 62. Qe6+ {[%emt 0:00:52]} Kg7 {[%emt 0:00:09]} 63. Qe7+ {[%emt 0:00:05]} Kg8 {[%emt 0:00:07]} 64. Qe3 {[%emt 0:00:09]} Kg7 {[%emt 0:02:09]} (64... Kf7 $11 {was preferrable.}) 65. g4 $1 $14 {[%emt 0:00:24]} Kf7 {[%emt 0:01:19]} 66. Kg3 {[%emt 0:01:03]} Kg8 {[%emt 0:00:36]} 67. h4 {[%emt 0:01:53]} Qd1 {[%emt 0:00:31]} 68. f5 {[%emt 0:03:11]} (68. g5 $14 hxg5 69. hxg5 (69. fxg5 Qd6+ 70. Kf3 Qd7 $16)) 68... Qd6+ $11 {[%emt 0:00:17] The position is equal.} 69. Kh3 {[%emt 0:00:12]} gxf5 {[%emt 0:00:29]} 70. gxf5 {[%emt 0:00:01] White wants to mate with Qg3+.} Kf7 {[%emt 0:00:30]} 71. Qf3 {[%emt 0:00:47]} Kf6 {[%emt 0:00:37]} 72. Kg4 {[%emt 0:00:17]} Qc5 {[%emt 0:00:29]} 73. Qe4 {[%emt 0:03:43] aiming for Qe6+.} h5+ {[%emt 0:00:09][%mdl 64] Deflection} 74. Kxh5 {[%emt 0:00:23] White threatens Qe6+ and mate.} Qxf5+ {[%emt 0:00:02]} 75. Qxf5+ {[%emt 0:00:08]} Kxf5 {[%emt 0:00:02] KP-K} 76. Kh6 {[%emt 0:00:07]} Kf6 {[%emt 0:00:01]} 77. h5 $1 {[%emt 0:00:05]} Kf7 {[%emt 0:00:01]} 78. Kh7 {[%emt 0:00:05]} Kf8 {[%emt 0:00:03]} 79. h6 {[%emt 0:00:03]} (79. Kg6 $5) 79... Kf7 {[%emt 0:00:01]} 80. Kh8 {[%emt 0:00:04]} Kg6 {[%emt 0:00:01]} 81. h7 {[%emt 0:00:05]} Kf7 {[%emt 0:04:52] Weighted Error Value: White=0.05 (flawless) /Black=0.07 (flawless)} 1/2-1/2

[Event "26th OIBM 2023"]
[Site "Gmund am Tegernsee"]
[Date "2023.11.03"]
[Round "7.2"]
[White "Kulaots, Kaido"]
[Black "Golubka, Petro"]
[Result "0-1"]
[ECO "B67"]
[WhiteElo "2508"]
[BlackElo "2434"]
[Annotator "RC"]
[PlyCount "84"]
[EventDate "2023.10.04"]
[EventType "swiss"]
[EventCountry "GER"]
[SourceTitle "playchess.com"]
[Source "ChessBase"]
[SourceQuality "1"]
[TimeControl "40/5400+30:1800+30"]

1. e4 {[%emt 0:00:09]} c5 {[%emt 0:03:58]} 2. Nf3 {[%emt 0:00:05]} d6 {[%emt 0:00:14]} 3. d4 {[%emt 0:00:05]} cxd4 {[%emt 0:00:10]} 4. Nxd4 {[%emt 0:00:04]} Nf6 {[%emt 0:00:16]} 5. Nc3 {[%emt 0:00:05]} Nc6 {[%emt 0:00:12]} 6. Bg5 {[%emt 0:00:16]} e6 {[%emt 0:00:14]} 7. Qd2 {[%emt 0:00:05]} a6 {[%emt 0:00:54]} 8. O-O-O {[%emt 0:00:06]} Bd7 {[%emt 0:01:20]} 9. f3 {[%emt 0:01:42]} Be7 {[%emt 0:02:40]} 10. Kb1 {[%emt 0:03:17]} b5 {[%emt 0:02:35]} 11. Nxc6 {[%emt 0:06:09]} Bxc6 {[%emt 0:02:25]} 12. h4 {[%emt 0:02:11]} h6 {[%emt 0:07:22]} 13. Be3 {[%emt 0:00:49]} Qc7 {[%emt 0:05:55]} 14. Bd3 {[%emt 0:06:26]} d5 {[%emt 0:03:22]} 15. e5 {[%emt 0:05:24]} Qxe5 {[%emt 0:07:03]} 16. Bf4 {[%emt 0:00:14]} Qd4 {[%emt 0:00:09]} 17. Bxb5 {[%emt 0:00:40]} Qb6 {[%emt 0:00:20]} 18. Bxc6+ {[%emt 0:00:17]} Qxc6 {[%emt 0:00:04]} 19. Ne2 {[%emt 0:11:09]} O-O {[%emt 0:14:06]} 20. g4 {[%emt 0:04:28]} Nd7 {[%emt 0:01:03]} 21. g5 {[%emt 0:30:54]} h5 {[%emt 0:03:54]} 22. g6 {[%emt 0:00:55]} Rac8 {[%emt 0:07:21]} 23. Nd4 {[%emt 0:13:13]} Qb6 {[%emt 0:00:18]} 24. Bg5 {[%emt 0:00:25]} Bc5 {[%emt 0:08:58]} 25. gxf7+ {[%emt 0:01:52]} Rxf7 {[%emt 0:00:21]} 26. f4 {[%emt 0:04:12]} Nf6 {[%emt 0:02:58]} 27. Bxf6 {[%emt 0:00:53]} Rxf6 {[%emt 0:00:07]} 28. Ne2 {[%emt 0:01:01]} a5 {[%emt 0:03:31]} 29. Ng3 {[%emt 0:03:42]} g6 {[%emt 0:00:22]} 30. Ne2 {[%emt 0:01:01]} Be3 {[%emt 0:01:23]} 31. Qd3 {[%emt 0:00:16]} Rc4 {[%emt 0:01:15]} 32. Rhf1 {[%emt 0:01:34]} Kf7 {[%emt 0:01:08]} 33. Rf3 {[%emt 0:00:54]} Bxf4 {[%emt 0:04:16]} 34. c3 {[%emt 0:00:17]} Re4 {[%emt 0:01:23]} 35. Rdf1 {[%emt 0:01:03]} Re3 {[%emt 0:05:34]} 36. Rxe3 {[%emt 0:01:37]} Bxe3 {[%emt 0:02:05]} 37. Rd1 {[%emt 0:00:36]} Rf2 {[%emt 0:02:27]} 38. Rg1 {[%emt 0:00:39]} Rf5 {[%emt 0:00:33]} 39. Rg2 {[%emt 0:00:39]} a4 {[%emt 0:02:14]} 40. Kc2 {[%emt 0:00:29]} Bf2 {[%emt 0:01:43]} 41. Nf4 {[%emt 0:07:23]} Rxf4 {[%emt 0:06:52]} 42. Qxg6+ {[%emt 0:00:09]} Ke7 {[%emt 0:00:12]} 0-1

[Event "26th OIBM 2023"]
[Site "Gmund am Tegernsee"]
[Date "2023.11.03"]
[Round "7.3"]
[White "Schachinger, Mario"]
[Black "Mastrovasilis, Dimitrios"]
[Result "1/2-1/2"]
[ECO "E08"]
[WhiteElo "2385"]
[BlackElo "2573"]
[Annotator "TA"]
[PlyCount "42"]
[EventDate "2023.10.04"]
[EventType "swiss"]
[EventCountry "GER"]
[SourceTitle "playchess.com"]
[Source "ChessBase"]
[SourceQuality "1"]
[TimeControl "40/5400+30:1800+30"]

{[%evp 18,42,25,25,35,22,24,23,21,18,23,30,30,19,24,34,35,0,0,0,0,0,0,0,0,0,-7]} 1. d4 {[%emt 0:00:04] ChessBase II} d5 {[%emt 0:02:34]} 2. c4 {[%emt 0:00:09]} e6 {[%emt 0:00:43]} 3. Nf3 {[%emt 0:00:21]} Nf6 {[%emt 0:00:18]} 4. g3 {[%emt 0:00:11]} Be7 {[%emt 0:00:27]} 5. Bg2 {[%emt 0:00:21]} O-O {[%emt 0:00:13]} 6. O-O {[%emt 0:00:15]} c6 {[%emt 0:00:20]} 7. Qc2 {[%emt 0:00:37]} Nbd7 {[%emt 0:01:39]} 8. Rd1 {[%emt 0:02:47]} b6 {[%emt 0:01:05]} 9. Nc3 {[%emt 0:03:02]} Bb7 {[%emt 0:04:13]} 10. b3 {[%emt 0:03:18]} a5 {[%emt 0:25:47][%cal Ba7a5,Ba5a4][%mdl 32] E08: Closed Catalan: Main Line: 7 Qc2.} 11. Bb2 {[%emt 0:11:05]} Qb8 {[%emt 0:07:50]} 12. e4 {[%emt 0:10:39]} Nxe4 {[%emt 0:04:43] White has an edge.} 13. Nxe4 {[%emt 0:02:12]} dxe4 {[%emt 0:00:09]} 14. Qxe4 {[%emt 0:00:30]} a4 {[%emt 0:02:44]} 15. Ne1 {[%emt 0:13:50] [#]} Ra7 $146 {[%emt 0:08:22]} ({Predecessor:} 15... Nf6 16. Qe2 Qc7 17. Nc2 axb3 18. axb3 Rfe8 19. Ne3 h6 20. Qf3 Rxa1 21. Rxa1 Ra8 {1-0 Chernin,A (2375)-Fries Nielsen,J (2200) World U20-ch18 1979 (3)}) 16. Qe2 {[%emt 0:06:22]} Re8 {[%emt 0:04:14]} 17. Nd3 {[%emt 0:03:53]} c5 {[%emt 0:06:13] The position is equal.} 18. Rab1 {[%emt 0:09:57]} axb3 {[%emt 0:04:11]} 19. axb3 {[%emt 0:00:24]} ({Wrong is} 19. Bxb7 $2 bxa2 20. Ra1 Qxb7 $19) 19... Bxg2 {[%emt 0:01:32]} 20. Kxg2 {[%emt 0:00:09]} Bf8 {[%emt 0:02:24]} 21. Ne5 {[%emt 0:13:53]} Nxe5 {[%emt 0:06:18] Weighted Error Value: White=0.04 (flawless) /Black=0.01 (flawless)} 1/2-1/2

[Event "26th OIBM 2023"]
[Site "Gmund am Tegernsee"]
[Date "2023.11.03"]
[Round "7.4"]
[White "Colpe, Malte"]
[Black "Stocek, Jiri"]
[Result "0-1"]
[ECO "E41"]
[WhiteElo "2386"]
[BlackElo "2535"]
[Annotator "RC"]
[PlyCount "108"]
[EventDate "2023.10.04"]
[EventType "swiss"]
[EventCountry "GER"]
[SourceTitle "playchess.com"]
[Source "ChessBase"]
[SourceQuality "1"]
[TimeControl "40/5400+30:1800+30"]

1. d4 {[%emt 0:00:03]} Nf6 {[%emt 0:00:19]} 2. c4 {[%emt 0:00:07]} e6 {[%emt 0:00:04]} 3. Nc3 {[%emt 0:00:14]} Bb4 {[%emt 0:00:05]} 4. e3 {[%emt 0:00:07]} O-O {[%emt 0:01:07]} 5. Bd3 {[%emt 0:00:09]} c5 {[%emt 0:00:22]} 6. Nge2 {[%emt 0:00:25]} d6 {[%emt 0:01:04]} 7. O-O {[%emt 0:02:34]} Nc6 {[%emt 0:00:25]} 8. Bc2 {[%emt 0:12:47]} Qe7 {[%emt 0:06:37]} 9. a3 {[%emt 0:06:30]} Ba5 {[%emt 0:00:17]} 10. Qd3 {[%emt 0:03:44]} a6 {[%emt 0:05:38]} 11. Ng3 {[%emt 0:13:20]} g6 {[%emt 0:03:12]} 12. Rd1 {[%emt 0:04:35]} Rb8 {[%emt 0:05:26]} 13. Ba4 {[%emt 0:08:38]} Bd7 {[%emt 0:08:04]} 14. Bxc6 {[%emt 0:05:58]} Bxc6 {[%emt 0:00:17]} 15. d5 {[%emt 0:00:57]} exd5 {[%emt 0:04:44]} 16. cxd5 {[%emt 0:00:53]} Bd7 {[%emt 0:00:31]} 17. h3 {[%emt 0:03:32]} Rfe8 {[%emt 0:11:03]} 18. b4 {[%emt 0:10:22]} cxb4 {[%emt 0:03:09]} 19. axb4 {[%emt 0:00:11]} Bxb4 {[%emt 0:00:15]} 20. Bb2 {[%emt 0:00:19]} Rbc8 {[%emt 0:04:34]} 21. Na4 {[%emt 0:06:54]} Ba5 {[%emt 0:06:22]} 22. Qd4 {[%emt 0:02:26]} Bxa4 {[%emt 0:01:49]} 23. Rxa4 {[%emt 0:06:02]} Bd8 {[%emt 0:00:41]} 24. Qf4 {[%emt 0:03:06]} Rc2 {[%emt 0:05:21]} 25. Ba1 {[%emt 0:01:22]} Rc5 {[%emt 0:07:17]} 26. Bxf6 {[%emt 0:03:33]} Qxf6 {[%emt 0:02:48]} 27. Qxf6 {[%emt 0:00:06]} Bxf6 {[%emt 0:00:03]} 28. Ne4 {[%emt 0:00:07]} Rxe4 {[%emt 0:01:01]} 29. Rxe4 {[%emt 0:00:06]} a5 {[%emt 0:02:55]} 30. Re8+ {[%emt 0:00:40]} Kg7 {[%emt 0:00:03]} 31. Ra8 {[%emt 0:00:17]} Bc3 {[%emt 0:00:50]} 32. Rc1 {[%emt 0:03:58]} b5 {[%emt 0:00:57]} 33. Rxc3 {[%emt 0:00:17]} Rxc3 {[%emt 0:00:04]} 34. Rxa5 {[%emt 0:00:06]} Rc1+ {[%emt 0:01:32]} 35. Kh2 {[%emt 0:00:07]} Rc5 {[%emt 0:00:01]} 36. e4 {[%emt 0:01:59]} b4 {[%emt 0:00:22]} 37. Ra2 {[%emt 0:01:06]} Kf6 {[%emt 0:01:12]} 38. Rb2 {[%emt 0:00:37]} Rc4 {[%emt 0:00:24]} 39. f3 {[%emt 0:00:31]} Ke5 {[%emt 0:00:06]} 40. Kg3 {[%emt 0:00:51]} Kd4 {[%emt 0:02:18]} 41. Rb3 {[%emt 0:02:07]} Kc5 {[%emt 0:03:21]} 42. Kf4 {[%emt 0:01:39]} f5 {[%emt 0:00:32]} 43. g4 {[%emt 0:05:32]} fxe4 {[%emt 0:00:30]} 44. fxe4 {[%emt 0:00:10]} Rc3 {[%emt 0:04:53]} 45. Rb1 {[%emt 0:01:13]} Rxh3 {[%emt 0:03:33]} 46. e5 {[%emt 0:01:24]} dxe5+ {[%emt 0:00:11]} 47. Kxe5 {[%emt 0:00:08]} Re3+ {[%emt 0:00:06]} 48. Kf6 {[%emt 0:01:41]} Re4 {[%emt 0:09:19]} 49. Rd1 {[%emt 0:02:37]} Kd6 {[%emt 0:00:05]} 50. g5 {[%emt 0:01:04]} b3 {[%emt 0:04:17]} 51. Kg7 {[%emt 0:08:01]} Re7+ {[%emt 0:00:11]} 52. Kh6 {[%emt 0:00:07]} b2 {[%emt 0:02:35]} 53. Ra1 {[%emt 0:04:14]} Rb7 {[%emt 0:00:55]} 54. Ra7 {[%emt 0:00:31]} Rb6 {[%emt 0:00:35]} 0-1

[Event "26th OIBM 2023"]
[Site "Gmund am Tegernsee"]
[Date "2023.11.03"]
[Round "7.5"]
[White "Morawietz, Dieter"]
[Black "Vetoshko, Volodymyr"]
[Result "1/2-1/2"]
[ECO "C84"]
[WhiteElo "2378"]
[BlackElo "2499"]
[Annotator "RC"]
[PlyCount "52"]
[EventDate "2023.10.04"]
[EventType "swiss"]
[EventCountry "GER"]
[SourceTitle "playchess.com"]
[Source "ChessBase"]
[SourceQuality "1"]
[TimeControl "40/5400+30:1800+30"]

1. e4 {[%emt 0:00:02]} e5 {[%emt 0:00:22]} 2. Nf3 {[%emt 0:00:10]} Nc6 {[%emt 0:00:04]} 3. Bb5 {[%emt 0:00:34]} a6 {[%emt 0:00:15]} 4. Ba4 {[%emt 0:00:06]} Nf6 {[%emt 0:01:18]} 5. O-O {[%emt 0:00:11]} b5 {[%emt 0:00:52]} 6. Bb3 {[%emt 0:00:06]} Bb7 {[%emt 0:00:16]} 7. d3 {[%emt 0:03:38]} Be7 {[%emt 0:01:14]} 8. Nc3 {[%emt 0:00:55]} d6 {[%emt 0:05:19]} 9. a3 {[%emt 0:01:26]} O-O {[%emt 0:00:58]} 10. Bd2 {[%emt 1:28:22]} Qd7 {[%emt 0:16:23]} 11. Re1 {[%emt 0:00:00]} Bd8 {[%emt 0:24:36]} 12. Nd5 {[%emt 0:00:00]} Nxd5 {[%emt 0:00:30]} 13. Nd4 {[%emt 0:00:00]} Nf6 {[%emt 0:04:29]} 14. Nf3 {[%emt 0:00:00]} Nd5 {[%emt 0:00:30]} 15. Bxd5 {[%emt 0:00:00]} Bf6 {[%emt 0:02:07]} 16. c3 {[%emt 0:00:00]} Qc8 {[%emt 0:00:54]} 17. h4 {[%emt 0:00:00]} Nd8 {[%emt 0:07:40]} 18. Bxb7 {[%emt 0:00:00]} Qxb7 {[%emt 0:00:17]} 19. d4 {[%emt 0:00:00]} Ne6 {[%emt 0:01:56]} 20. d5 {[%emt 0:00:00]} Nc5 {[%emt 0:01:36]} 21. Qe2 {[%emt 0:00:00]} c6 {[%emt 0:06:43]} 22. dxc6 {[%emt 0:00:00]} Qxc6 {[%emt 0:00:00]} 23. Rad1 {[%emt 0:00:00]} Na4 {[%emt 0:04:27]} 24. Bg5 {[%emt 0:00:00]} Bxg5 {[%emt 0:01:28]} 25. hxg5 {[%emt 0:00:00]} Rad8 {[%emt 0:03:50]} 26. Rd3 {[%emt 0:00:00]} Nc5 {[%emt 0:02:18]} 1/2-1/2

[Event "26th OIBM 2023"]
[Site "Gmund am Tegernsee"]
[Date "2023.11.03"]
[Round "7.6"]
[White "Besou, Hussain"]
[Black "Schneider, Ilja"]
[Result "0-1"]
[ECO "A61"]
[WhiteElo "2351"]
[BlackElo "2468"]
[Annotator "RC"]
[PlyCount "70"]
[EventDate "2023.10.04"]
[EventType "swiss"]
[EventCountry "GER"]
[SourceTitle "playchess.com"]
[Source "ChessBase"]
[SourceQuality "1"]
[TimeControl "40/5400+30:1800+30"]

1. d4 {[%emt 0:00:02]} Nf6 {[%emt 0:00:32]} 2. c4 {[%emt 0:00:07]} e6 {[%emt 0:00:06]} 3. Nc3 {[%emt 0:00:51]} c5 {[%emt 0:00:37]} 4. d5 {[%emt 0:00:06]} exd5 {[%emt 0:00:05]} 5. cxd5 {[%emt 0:00:05]} d6 {[%emt 0:00:06]} 6. Nf3 {[%emt 0:02:58]} g6 {[%emt 0:01:33]} 7. Bf4 {[%emt 0:00:16]} Bg7 {[%emt 0:00:32]} 8. Qa4+ {[%emt 0:01:24]} Bd7 {[%emt 0:03:11]} 9. Qb3 {[%emt 0:00:40]} O-O {[%emt 0:02:09]} 10. Bxd6 {[%emt 0:22:23]} Ba4 {[%emt 0:01:09]} 11. Qxa4 {[%emt 0:00:27]} Qxd6 {[%emt 0:00:15]} 12. Rd1 {[%emt 0:02:58]} Nbd7 {[%emt 0:08:44]} 13. g3 {[%emt 0:07:43]} Nb6 {[%emt 0:08:32]} 14. Qc2 {[%emt 0:06:44]} Nfxd5 {[%emt 0:06:34]} 15. Bg2 {[%emt 0:11:59]} Qc6 {[%emt 0:23:38]} 16. Nh4 {[%emt 0:07:11]} Nb4 {[%emt 0:12:50]} 17. Qb3 {[%emt 0:04:11]} Qe6 {[%emt 0:00:38]} 18. O-O {[%emt 0:06:13]} Qxb3 {[%emt 0:04:42]} 19. axb3 {[%emt 0:00:12]} c4 {[%emt 0:04:15]} 20. bxc4 {[%emt 0:15:08]} Nxc4 {[%emt 0:00:08]} 21. Rd7 {[%emt 0:01:14]} Nxb2 {[%emt 0:01:04]} 22. Nd5 {[%emt 0:02:05]} Nxd5 {[%emt 0:01:57]} 23. Bxd5 {[%emt 0:00:05]} Na4 {[%emt 0:00:04]} 24. Rxb7 {[%emt 0:02:12]} Nc3 {[%emt 0:00:07]} 25. Bc4 {[%emt 0:01:34]} a5 {[%emt 0:00:51]} 26. Nf3 {[%emt 0:01:13]} a4 {[%emt 0:01:15]} 27. Nd2 {[%emt 0:02:15]} a3 {[%emt 0:00:34]} 28. Nb3 {[%emt 0:00:46]} Rac8 {[%emt 0:02:42]} 29. Bd3 {[%emt 0:00:39]} Rb8 {[%emt 0:00:14]} 30. Rxb8 {[%emt 0:00:18]} Rxb8 {[%emt 0:00:01]} 31. Na1 {[%emt 0:01:02]} a2 {[%emt 0:01:04]} 32. Kg2 {[%emt 0:00:31]} Nb1 {[%emt 0:05:34]} 33. Nc2 {[%emt 0:00:53]} Nd2 {[%emt 0:00:30]} 34. Rd1 {[%emt 0:00:15]} Rb1 {[%emt 0:00:52]} 35. Rxd2 {[%emt 0:00:05]} Bc3 {[%emt 0:00:02]} 0-1

[Event "26th OIBM 2023"]
[Site "Gmund am Tegernsee"]
[Date "2023.11.03"]
[Round "7.7"]
[White "Schmider, Niklas"]
[Black "Hess, Max"]
[Result "1-0"]
[ECO "B12"]
[WhiteElo "2395"]
[BlackElo "2378"]
[Annotator "RC"]
[PlyCount "79"]
[EventDate "2023.10.04"]
[EventType "swiss"]
[EventCountry "GER"]
[SourceTitle "playchess.com"]
[Source "ChessBase"]
[SourceQuality "1"]
[TimeControl "40/5400+30:1800+30"]

1. e4 {[%emt 0:00:21]} c6 {[%emt 0:00:06]} 2. d4 {[%emt 0:00:16]} d5 {[%emt 0:00:05]} 3. e5 {[%emt 0:00:26]} Bf5 {[%emt 0:00:08]} 4. Nf3 {[%emt 0:00:31]} e6 {[%emt 0:00:05]} 5. Be2 {[%emt 0:00:05]} Ne7 {[%emt 0:00:38]} 6. O-O {[%emt 0:00:20]} h6 {[%emt 0:00:15]} 7. Nbd2 {[%emt 0:00:48]} Bh7 {[%emt 0:00:17]} 8. Nb3 {[%emt 0:00:19]} Ng6 {[%emt 0:00:10]} 9. Be3 {[%emt 0:02:59]} Be7 {[%emt 0:01:58]} 10. Ne1 {[%emt 0:00:58]} c5 {[%emt 0:11:42]} 11. Nxc5 {[%emt 0:04:33]} Bxc5 {[%emt 0:00:07]} 12. dxc5 {[%emt 0:00:04]} Nxe5 {[%emt 0:00:34]} 13. Bd4 {[%emt 0:01:06]} Nbc6 {[%emt 0:01:39]} 14. f4 {[%emt 0:01:15]} Nd7 {[%emt 0:04:23]} 15. Bxg7 {[%emt 0:11:46]} Rg8 {[%emt 0:00:09]} 16. Bxh6 {[%emt 0:01:32]} Nxc5 {[%emt 0:02:52]} 17. Bg5 {[%emt 0:10:29]} Qb6 {[%emt 0:01:43]} 18. Kh1 {[%emt 0:02:11]} Qxb2 {[%emt 0:13:40]} 19. Nd3 {[%emt 0:15:31]} Bxd3 {[%emt 0:03:45]} 20. Bxd3 {[%emt 0:03:30]} Qg7 {[%emt 0:00:37]} 21. Qf3 {[%emt 0:21:00]} f6 {[%emt 0:03:28]} 22. Bh4 {[%emt 0:02:02]} Nxd3 {[%emt 0:07:27]} 23. cxd3 {[%emt 0:00:03]} Nd4 {[%emt 0:00:41]} 24. Qh3 {[%emt 0:02:25]} Rh8 {[%emt 0:16:39]} 25. Qe3 {[%emt 0:02:44]} Rxh4 {[%emt 0:00:37]} 26. Qxd4 {[%emt 0:16:16]} Qg3 {[%emt 0:01:18]} 27. Qg1 {[%emt 0:00:00]} Qxd3 {[%emt 0:07:26]} 28. Rf3 {[%emt 0:00:00]} Qf5 {[%emt 0:04:12]} 29. Qf2 {[%emt 0:00:00]} Rh7 {[%emt 0:04:15]} 30. g4 {[%emt 0:00:00]} Qg6 {[%emt 0:01:33]} 31. f5 {[%emt 0:00:00]} Qg5 {[%emt 0:04:00]} 32. fxe6 {[%emt 0:00:00]} O-O-O {[%emt 0:01:13]} 33. Re1 {[%emt 0:02:14]} Qxg4 {[%emt 0:04:59]} 34. Rxf6 {[%emt 0:00:39]} Kb8 {[%emt 0:03:43]} 35. e7 {[%emt 0:00:34]} Re8 {[%emt 0:00:54]} 36. Rf8 {[%emt 0:00:04]} Qd7 {[%emt 0:00:36]} 37. Qf4+ {[%emt 0:00:35]} Ka8 {[%emt 0:00:03]} 38. Rxe8+ {[%emt 0:00:13]} Qxe8 {[%emt 0:00:04]} 39. Qf8 {[%emt 0:00:07]} Rh8 {[%emt 0:00:14]} 40. Qxh8 {[%emt 0:00:07]} 1-0